bitfinex/quotes_ETHUSD_20241001
["timestamp","ask_amount","ask_price","bid_price","bid_amount"]
[1727765331558,3.7712,2651.7,2651.4,0.53877231]
[1727765332494,3.77105,2651.8,2651.4,0.53877231]
[1727765333156,5.3721303,2651.9,2651.4,0.53877231]
[1727765333359,9.1431303,2651.9,2651.5,0.51051923]
[1727765333679,9.1431303,2651.9,2651.6,0.07455221]
[1727765333877,3.77096,2651.9,2651.6,0.07455221]
[1727765334081,3.77089,2651.9,2651.6,0.89385221]
[1727765334278,3.77068,2652.1,2651.6,1.40679482]
[1727765334463,3.77068,2652.1,2651.6,5.17806482]
[1727765334983,4.55766,2652.3,2651.8,3.77099]
[1727765335290,4.55766,2652.3,2651.9,0.07426967]
[1727765335291,3.77064,2652.1,2651.9,0.07426967]
[1727765335586,3.77064,2652.1,2651.6,5.10351261]
[1727765335787,3.77064,2652.1,2651.7,0.51789299]
[1727765336005,3.77064,2652.1,2651.7,0.59228568]
[1727765336179,4.55766,2652.3,2651.8,0.7573]
[1727765336356,8.32806,2652.3,2651.9,0.07426967]
[1727765336700,7.54076,2652.3,2651.9,0.07426967]
[1727765337052,3.77047,2652.2,2651.9,0.07426967]
[1727765337249,3.77047,2652.2,2651.9,0.58632594]
[1727765338195,3.77036,2652.3,2651.9,0.58632594]
[1727765338358,3.77036,2652.3,2651.9,0.07426967]
[1727765339200,3.77026,2652.4,2651.9,27.04594967]
[1727765339492,3.77031,2652.3,2652.0,0.7824]
[1727765339664,3.77018,2652.4,2652.0,0.7824]
[1727765339869,3.77018,2652.4,2652.1,0.53686705]
[1727765340484,1.6011703,2652.6,2652.1,0.53686705]
[1727765340687,3.77005,2652.5,2652.1,0.53686705]
[1727765341084,3.76984,2652.7,2652.2,0.8014]
[1727765341268,3.76984,2652.7,2652.3,0.51088371]
[1727765341464,3.76998,2652.6,2652.3,0.07391451]
[1727765341796,3.77017,2652.4,2652.3,0.07391451]
[1727765343392,3.77002,2652.5,2652.3,0.07391451]
[1727765344185,7.54018,2652.5,2652.3,0.07391451]
[1727765344492,3.77002,2652.5,2652.3,0.07391451]
[1727765349602,3.76982,2652.7,2652.3,0.07391451]
[1727765349778,3.76982,2652.7,2652.3,1.8986438]
[1727765350177,4.53894,2652.9,2652.3,1.97404359]
[1727765350414,5.4175653,2653.1,2652.4,5.3713303]
[1727765350598,7.585675,2653.1,2652.6,0.7803]
[1727765350803,3.816395,2653.1,2652.6,0.7803]
[1727765351118,3.816395,2653.1,2652.7,0.0734167]
[1727765353085,3.816395,2653.1,2652.8,0.756]
[1727765353286,0.047145,2653.1,2652.8,0.756]
[1727765353486,0.047145,2653.1,2652.9,0.07314269]
[1727765353726,0.047145,2653.1,2652.9,19.50314269]
[1727765353880,0.047145,2653.1,2653.0,2.60302929]
[1727765354286,0.047145,2653.1,2653.0,2.67605738]
[1727765354810,0.047145,2653.1,2653.0,22.10605738]
[1727765356768,0.047145,2653.1,2653.0,25.87536738]
[1727765359995,0.047145,2653.1,2653.0,22.10605738]
[1727765366051,1.6483153,2653.1,2653.0,22.10605738]
[1727765366203,0.047145,2653.1,2653.0,22.10605738]
[1727765367547,0.047145,2653.1,2653.0,25.87536738]
[1727765376028,0.047145,2653.1,2653.0,27.47653768]
[1727765376231,0.047145,2653.1,2653.0,31.02653768]
[1727765376463,4.51813,2654.2,2653.0,31.02653768]
[1727765376775,4.51813,2654.2,2653.6,0.8118]
[1727765376982,4.51813,2654.2,2653.6,20.2418]
[1727765377129,0.7504,2654.2,2653.7,0.0719935]
[1727765377330,3.76778,2654.1,2653.7,0.0719935]
[1727765381290,2.3515703,2654.2,2653.7,0.0719935]
[1727765381496,2.3515703,2654.2,2653.7,1.89672279]
[1727765381794,2.3515703,2654.2,2653.7,5.66504279]
[1727765382154,3.76779,2654.1,2653.7,21.32672279]
[1727765382898,2.3515703,2654.2,2653.7,21.32672279]
[1727765383061,6.1192003,2654.2,2653.7,21.32672279]
[1727765383264,6.1192003,2654.2,2653.8,0.51789299]
[1727765383463,6.1192003,2654.2,2653.9,0.07168898]
[1727765384963,3.76784,2654.1,2653.9,0.07168898]
[1727765386057,6.1191903,2654.2,2653.9,0.07168898]
[1727765386505,3.76779,2654.1,2653.9,0.07168898]
[1727765386801,5.3690603,2654.0,2653.9,0.07168898]
[1727765387200,5.3690603,2654.0,2653.7,19.43]
[1727765387360,5.3690603,2654.0,2653.9,0.0715576]
[1727765387560,1.6011703,2654.0,2653.8,0.07161902]
[1727765387855,1.6011703,2654.0,2653.9,0.0715576]
[1727765388088,1.6011703,2654.0,2653.6,24.01025]
[1727765388287,1.6011703,2654.0,2653.9,0.07154083]
[1727765388499,1.6011703,2654.0,2653.6,21.076673]
[1727765388705,1.6011703,2654.0,2653.7,0.07166367]
[1727765389908,5.3690803,2654.0,2653.7,0.07166367]
[1727765390112,1.6011703,2654.0,2653.7,0.07166367]
[1727765391014,1.59993873,2654.0,2653.7,0.07166367]
[1727765397828,1.59993873,2654.0,2653.7,3.83997367]
[1727765398011,3.76779,2654.1,2653.7,3.83997367]
[1727765398619,3.76779,2654.1,2653.7,0.07166367]
[1727765400514,7.53563,2654.1,2653.7,0.07166367]
[1727765400689,3.76779,2654.1,2653.7,0.07166367]
[1727765400994,2.3515703,2654.2,2653.7,0.07166367]
[1727765401206,3.76789,2654.0,2653.7,0.07166367]
[1727765401491,3.76758,2654.3,2653.7,0.07166367]
[1727765401492,6.1603503,2653.8,2653.7,0.07166367]
[1727765402600,2.3921703,2653.8,2653.7,0.07166367]
[1727765406117,6.1603503,2653.8,2653.7,0.07166367]
[1727765406330,6.1603503,2653.8,2653.4,0.8047]
[1727765406538,6.1603503,2653.8,2653.7,0.07173632]
[1727765406692,6.1603503,2653.8,2653.4,0.8047]
[1727765406892,6.1603503,2653.8,2653.7,0.07173632]
[1727765407092,6.1603503,2653.8,2653.4,0.8047]
[1727765407331,6.1603503,2653.8,2653.7,0.07173632]
[1727765407533,6.1603503,2653.8,2653.4,0.8047]
[1727765407736,6.1603503,2653.8,2653.7,0.07173632]
[1727765407940,6.1603503,2653.8,2653.4,0.8047]
[1727765408636,6.1603503,2653.8,2653.5,0.07168875]
[1727765410404,3.76833,2653.7,2653.5,0.07168875]
[1727765410738,7.53679,2653.7,2653.3,19.43]
[1727765410938,3.76833,2653.7,2653.6,0.07162732]
[1727765411110,3.76833,2653.7,2653.3,19.43]
[1727765411304,3.76833,2653.7,2653.6,0.07162732]
[1727765411507,3.76833,2653.7,2653.3,19.43]
[1727765411839,3.76833,2653.7,2653.4,0.07175019]
[1727765414066,2.3921703,2653.8,2653.5,3.7686]
[1727765414251,2.3921703,2653.8,2653.6,0.07162732]
[1727765414618,2.3921703,2653.8,2653.6,3.84008732]
[1727765415151,2.3921703,2653.8,2653.6,0.07162732]
[1727765415511,2.3921703,2653.8,2653.4,7.53725]
[1727765415729,2.3921703,2653.8,2653.5,0.07168875]
[1727765416345,1.6011703,2653.8,2653.5,3.84027875]
[1727765416650,0.7693,2654.0,2653.5,0.86908875]
[1727765416822,3.0,2654.3,2653.6,0.7974]
[1727765416823,0.7693,2654.3,2653.6,0.7974]
[1727765417182,1.6011703,2654.2,2653.8,3.76817]
[1727765417360,1.6011703,2654.2,2653.7,0.0715659]
[1727765417506,1.6011703,2654.2,2653.9,0.07144865]
[1727765417711,1.6011703,2654.2,2653.7,4.23195159]
[1727765417954,1.6011703,2654.2,2653.8,0.07151007]
[1727765418317,1.6011703,2654.2,2653.7,4.23195159]
[1727765418651,1.6011703,2654.2,2653.8,0.07151007]
[1727765418852,5.3687903,2654.2,2653.7,0.46373159]
[1727765419060,1.6011703,2654.2,2653.7,0.46373159]
[1727765419270,1.6011703,2654.2,2653.8,0.07151007]
[1727765419552,1.6011703,2654.2,2653.7,0.46373159]
[1727765419747,1.6011703,2654.2,2653.9,0.07144865]
[1727765420062,1.6011703,2654.2,2653.8,0.07151007]
[1727765420372,1.6011703,2654.2,2653.9,0.07144865]
[1727765420718,1.6011703,2654.2,2653.7,4.23204159]
[1727765420917,5.3688303,2654.2,2653.8,0.07151007]
[1727765421150,5.3688303,2654.2,2653.7,0.46373159]
[1727765421448,5.3688303,2654.2,2653.8,0.07151007]
[1727765421612,5.3688303,2654.2,2653.7,0.46373159]
[1727765422134,5.3688303,2654.2,2653.8,0.0714486]
[1727765422135,1.6011703,2654.0,2653.8,0.0714486]
[1727765422565,1.6011703,2654.0,2653.6,4.56575]
[1727765422767,1.6011703,2654.0,2653.9,0.07138719]
[1727765422971,1.6011703,2654.0,2653.6,4.56575]
[1727765423169,1.6011703,2654.0,2653.9,0.07138719]
[1727765423378,1.6011703,2654.0,2653.6,4.56575]
[1727765423547,1.6011703,2654.0,2653.9,0.07138719]
[1727765423748,1.6011703,2654.0,2653.6,23.99575]
[1727765423978,1.6011703,2654.0,2653.9,0.07138719]
[1727765424499,1.6011703,2654.0,2653.6,23.99575]
[1727765424657,1.6011703,2654.0,2653.7,0.07151002]
[1727765430103,7.16139293,2654.6,2653.7,0.07151002]
[1727765430104,1.6011703,2653.8,2653.7,0.07151002]
[1727765430303,1.6011703,2653.8,2653.5,19.43]
[1727765430469,5.3694203,2653.8,2653.6,0.07151557]
[1727765431005,1.6011703,2653.8,2653.6,0.07151557]
[1727765431867,1.6011703,2653.8,2653.6,0.119356]
[1727765432099,5.3693803,2653.8,2653.6,0.119356]
[1727765432291,1.6011703,2653.8,2653.6,0.119356]
[1727765433005,5.3693603,2653.8,2653.6,0.119356]
[1727765433814,1.6011703,2653.8,2653.6,0.119356]
[1727765434186,5.3693503,2653.8,2653.6,0.119356]
[1727765434401,1.6011703,2653.8,2653.6,0.119356]
[1727765435675,1.6011703,2653.8,2653.3,8.3353]
[1727765435875,1.6011703,2653.8,2653.4,0.1196379]
[1727765436479,1.6011703,2653.8,2653.4,3.8883579]
[1727765438092,1.6011703,2653.8,2653.4,0.1196379]
[1727765439432,4.57115,2653.9,2653.4,3.8883679]
[1727765440490,4.57115,2653.9,2653.4,0.1196379]
[1727765441329,4.57115,2653.9,2653.4,3.8883779]
[1727765441632,3.7682,2653.8,2653.4,0.1196379]
[1727765442537,5.3693703,2653.8,2653.4,0.1196379]
[1727765442732,4.57606,2653.7,2653.4,0.1196379]
[1727765442901,4.57606,2653.7,2653.1,4.59279]
[1727765443106,0.8077,2653.7,2653.2,3.88482548]
[1727765445445,0.8077,2653.7,2653.3,3.7688]
[1727765445609,0.8077,2653.7,2653.3,4.61653255]
[1727765445809,0.8077,2653.7,2653.4,0.11568899]
[1727765447461,0.8077,2653.7,2653.2,23.19897]
[1727765447632,0.8077,2653.7,2653.5,0.11562575]
[1727765447825,0.8077,2653.7,2653.2,23.19897]
[1727765448026,0.8077,2653.7,2653.6,0.11556252]
[1727765448206,0.8077,2653.7,2653.2,19.43]
[1727765448413,0.8077,2653.7,2653.6,0.11556252]
[1727765448643,4.57603,2653.7,2653.2,19.43]
[1727765448848,4.57603,2653.7,2653.6,0.11556252]
[1727765449051,0.8077,2653.7,2653.2,23.19901]
[1727765449212,4.57603,2653.7,2653.6,0.11556252]
[1727765449411,4.57603,2653.7,2653.2,23.19901]
[1727765449628,0.8077,2653.7,2653.6,0.11556252]
[1727765449827,0.8077,2653.7,2653.2,23.19901]
[1727765450322,0.8077,2653.7,2653.3,3.88460223]
[1727765450526,3.76808,2653.9,2653.4,0.7552]
[1727765450706,3.76808,2653.9,2653.5,0.11562575]
[1727765451446,3.76827,2653.8,2653.5,0.11562575]
[1727765453147,3.76808,2653.9,2653.5,0.11562575]
[1727765453354,3.76825,2653.8,2653.5,0.11562575]
[1727765453649,3.76808,2653.9,2653.5,0.11562575]
[1727765454441,7.53621,2653.9,2653.5,0.11562575]
[1727765454615,3.76808,2653.9,2653.5,0.11562575]
[1727765454817,7.53621,2653.9,2653.5,0.11562575]
[1727765455556,3.76831,2653.8,2653.5,0.11562575]
[1727765458236,3.76835,2653.7,2653.5,0.11562575]
[1727765460646,3.76813,2653.9,2653.5,0.11562575]
[1727765460647,3.76818,2653.8,2653.5,0.11562575]
[1727765460976,0.7806,2654.0,2653.5,0.11562575]
[1727765461280,3.76785,2654.1,2653.5,0.11562575]
[1727765461769,3.76785,2654.1,2653.6,0.7969]
[1727765461969,3.76785,2654.1,2653.6,4.56534]
[1727765462272,3.76785,2654.1,2653.7,0.11552152]
[1727765463301,3.76761,2654.2,2653.8,0.774]
[1727765463908,3.76761,2654.2,2653.9,0.11536729]
[1727765465777,5.3690603,2654.0,2653.9,0.11536729]
[1727765465967,2.59522333,2654.0,2653.9,0.11536729]
[1727765466164,1.6011703,2654.0,2653.6,19.43]
[1727765466474,1.6011703,2654.0,2653.7,0.11158649]
[1727765467060,5.3691003,2654.0,2653.7,0.11158649]
[1727765467620,4.57147,2654.1,2653.7,0.11158649]
[1727765469593,3.76777,2654.1,2653.7,0.11158649]
[1727765476285,0.7979,2654.3,2653.8,4.54667]
[1727765476620,4.59798,2654.7,2654.1,4.59754]
[1727765477114,0.831,2654.7,2654.2,3.87878212]
[1727765477271,3.7661,2655.3,2654.2,3.87878212]
[1727765477272,5.3678303,2654.9,2654.3,3.76736]
[1727765477473,5.3678303,2654.9,2654.2,3.87878212]
[1727765477716,5.3678303,2654.9,2654.4,0.11113572]
[1727765477717,3.76693,2654.7,2654.4,0.11113572]
[1727765477903,4.25447133,2655.6,2654.6,4.57932]
[1727765477904,0.7821,2655.5,2654.6,4.57932]
[1727765478104,3.76575,2655.6,2654.8,2.4134703]
[1727765478275,3.76588,2655.5,2654.9,4.57886]
[1727765478479,0.127173,2655.7,2654.9,4.68967982]
[1727765478480,5.3669003,2655.6,2654.9,4.68967982]
[1727765478787,1.6011703,2655.4,2654.9,0.92311982]
[1727765479194,1.6011703,2655.4,2654.9,4.68963982]
[1727765481037,5.3670903,2655.4,2654.9,0.92311982]
[1727765481415,5.3670903,2655.4,2654.9,1.3921168]
[1727765483436,1.6011703,2655.2,2654.9,1.3921168]
[1727765483940,5.3673703,2655.2,2654.9,0.92311982]
[1727765487228,3.76595,2655.4,2654.9,4.68965982]
[1727765487430,3.7657,2655.6,2654.9,4.68965982]
[1727765487431,3.76586,2655.5,2655.0,0.07532469]
[1727765487686,1.6011703,2655.5,2655.0,0.07532469]
[1727765487829,5.3673403,2655.3,2655.1,0.1100662]
[1727765488181,5.3673403,2655.3,2654.9,0.8123]
[1727765488356,5.3673403,2655.3,2655.0,0.11012936]
[1727765488357,1.6011703,2655.3,2655.0,0.11012936]
[1727765488554,3.76601,2655.4,2655.0,0.5790443]
[1727765488717,1.6011703,2655.3,2655.0,0.5790443]
[1727765489060,1.6011703,2655.3,2655.0,0.11012936]
[1727765498382,5.3672303,2655.3,2655.0,0.11012936]
[1727765500078,1.6011703,2655.3,2655.0,0.11012936]
[1727765501541,3.766,2655.4,2655.0,0.11012936]
[1727765501943,1.6011703,2655.3,2655.0,0.11012936]
[1727765502971,5.3672203,2655.3,2655.0,0.11012936]
[1727765504685,1.6011703,2655.1,2655.0,0.11012936]
[1727765505041,5.3675003,2655.1,2655.0,0.11012936]
[1727765505348,6.35610033,2655.1,2654.8,19.43]
[1727765505545,3.76657,2655.0,2654.9,0.1101594]
[1727765505779,1.6011703,2655.1,2654.9,0.1101594]
[1727765506083,5.3676203,2655.1,2654.9,0.1101594]
[1727765506675,3.76621,2655.2,2654.9,0.1101594]
[1727765508381,5.3675903,2655.1,2654.9,0.1101594]
[1727765508584,3.76647,2655.0,2654.9,0.1101594]
[1727765509478,1.6011703,2655.1,2654.9,0.1101594]
[1727765509798,3.76621,2655.2,2654.7,0.8306]
[1727765510117,3.76621,2655.2,2654.8,0.10672673]
[1727765510861,7.53249,2655.2,2654.8,0.10672673]
[1727765511060,3.76621,2655.2,2654.8,0.10672673]
[1727765511271,3.76638,2655.1,2654.8,0.10672673]
[1727765512973,3.76649,2655.0,2654.8,0.10672673]
[1727765514478,7.53304,2655.0,2654.8,0.10672673]
[1727765514677,3.76649,2655.0,2654.8,0.10672673]
[1727765514990,3.76662,2654.9,2654.8,0.10672673]
[1727765516191,1.6011703,2655.1,2654.8,0.10672673]
[1727765516365,5.3676403,2655.1,2654.8,0.10672673]
[1727765516578,3.76652,2655.0,2654.8,0.10672673]
[1727765517102,5.3677903,2654.9,2654.8,0.10672673]
[1727765517299,5.7444423,2654.9,2654.8,0.10672673]
[1727765517501,3.76683,2654.8,2654.5,20.2152]
[1727765518374,3.76683,2654.8,2654.5,0.7852]
[1727765519804,3.76676,2654.8,2654.5,0.7852]
[1727765519992,7.53335,2654.9,2654.5,0.7852]
[1727765520189,7.53335,2654.9,2654.6,0.10339578]
[1727765520190,3.76662,2654.9,2654.6,0.10339578]
[1727765522714,7.53289,2655.1,2654.6,0.10339578]
[1727765522868,3.76642,2655.1,2654.7,0.8297]
[1727765523313,3.76642,2655.1,2654.8,0.10326942]
[1727765523314,3.76648,2655.0,2654.8,0.10326942]
[1727765523510,3.76642,2655.1,2654.8,0.10326942]
[1727765524881,1.6011703,2655.3,2654.8,0.10326942]
[1727765525176,3.76651,2655.0,2654.8,0.10326942]
[1727765525881,3.76662,2654.9,2654.8,0.10326942]
[1727765526085,3.76633,2655.1,2654.8,0.10326942]
[1727765526431,3.76628,2655.2,2654.8,0.10326942]
[1727765526576,3.76628,2655.2,2654.9,0.86932642]
[1727765526577,3.76627,2655.2,2654.9,0.86932642]
[1727765526782,3.76627,2655.2,2655.0,0.10312659]
[1727765527783,3.76621,2655.2,2655.0,0.10312659]
[1727765528927,3.76633,2655.1,2655.0,0.10312659]
[1727765529293,3.76633,2655.1,2654.7,0.8098]
[1727765529490,3.76633,2655.1,2655.0,0.10304686]
[1727765529723,3.76633,2655.1,2654.7,0.8098]
[1727765529925,3.76633,2655.1,2655.0,0.10304686]
[1727765530094,3.76641,2655.1,2654.7,0.8098]
[1727765530297,3.76641,2655.1,2655.0,0.10304686]
[1727765530498,3.76641,2655.1,2654.7,20.2398]
[1727765530693,5.3673803,2655.2,2655.0,0.10304686]
[1727765530932,3.76635,2655.1,2654.7,20.2398]
[1727765531714,5.3673803,2655.2,2654.7,20.2398]
[1727765531715,5.3673803,2655.2,2654.7,24.00669]
[1727765532055,9.1336603,2655.2,2654.7,20.2398]
[1727765532345,5.3673803,2655.2,2654.7,20.2398]
[1727765533646,3.76662,2654.9,2654.7,19.43]
[1727765534025,3.7666,2655.0,2654.7,19.43]
[1727765534225,3.76669,2654.9,2654.7,19.43]
[1727765534426,3.7666,2655.0,2654.7,19.43]
[1727765534745,3.76667,2654.9,2654.7,19.43]
[1727765534919,3.76656,2655.0,2654.7,19.43]
[1727765535123,3.7667,2654.9,2654.7,19.43]
[1727765535449,7.53317,2655.0,2654.8,0.10313746]
[1727765535811,5.3677903,2654.9,2654.8,0.10313746]
[1727765536619,5.3677903,2654.9,2654.3,24.02775]
[1727765536817,5.3677903,2654.9,2654.4,0.1000515]
[1727765537429,3.76641,2655.1,2654.6,3.76702]
[1727765537952,3.76641,2655.1,2654.7,0.09986468]
[1727765539161,3.76633,2655.2,2654.7,0.09986468]
[1727765539322,3.76635,2655.1,2654.8,0.8118]
[1727765539655,3.76635,2655.1,2654.9,0.09973833]
[1727765539859,3.7661,2655.3,2654.9,0.09973833]
[1727765540029,3.7662,2655.2,2654.9,0.09973833]
[1727765542224,7.53247,2655.2,2654.9,0.09973833]
[1727765542869,3.7662,2655.2,2654.9,0.09973833]
[1727765543524,7.53247,2655.2,2654.9,0.09973833]
[1727765543768,3.7662,2655.2,2654.9,0.09973833]
[1727765544059,7.53248,2655.2,2654.9,0.09973833]
[1727765544535,3.76633,2655.1,2654.9,0.09973833]
[1727765544747,3.7662,2655.2,2654.9,0.09973833]
[1727765544938,7.5325,2655.2,2654.9,0.09973833]
[1727765546068,3.76634,2655.1,2654.9,0.09973833]
[1727765546355,3.7662,2655.2,2654.9,0.09973833]
[1727765547057,3.7662,2655.2,2655.0,0.7755]
[1727765547466,3.76633,2655.1,2655.0,0.7755]
[1727765547844,3.7662,2655.2,2655.0,0.7755]
[1727765550330,3.7662,2655.2,2655.1,0.09952172]
[1727765553179,7.5322,2655.3,2654.8,19.43]
[1727765553475,3.76605,2655.3,2654.8,19.43]
[1727765553686,7.5322,2655.3,2654.9,0.09964805]
[1727765554288,3.76605,2655.3,2654.9,0.09964805]
[1727765554960,7.53218,2655.3,2654.9,0.09964805]
[1727765555162,3.76605,2655.3,2654.9,0.09964805]
[1727765555387,3.76605,2655.3,2655.0,0.7733]
[1727765555691,3.76605,2655.3,2655.1,0.09952172]
[1727765557052,3.76612,2655.3,2655.1,0.09952172]
[1727765557880,1.6011703,2655.4,2655.1,0.09952172]
[1727765557881,3.76598,2655.4,2655.1,0.09952172]
[1727765558699,3.76607,2655.3,2655.1,0.09952172]
[1727765561399,6.1973403,2655.5,2655.1,0.09952172]
[1727765561555,3.76613,2655.3,2655.1,0.09952172]
[1727765564804,3.76619,2655.2,2655.1,0.09952172]
[1727765565794,3.76613,2655.3,2655.1,0.09952172]
[1727765566193,0.761,2655.1,2654.8,19.43]
[1727765566365,5.3677903,2654.9,2654.8,19.43]
[1727765566566,3.76676,2654.8,2654.4,20.194]
[1727765568473,1.6011703,2654.9,2654.4,23.96132]
[1727765568784,5.3678403,2654.9,2654.4,20.194]
[1727765568989,3.76679,2654.8,2654.4,20.194]
[1727765570300,3.76676,2654.8,2654.4,20.194]
[1727765570503,2.3619703,2654.7,2654.4,19.43]
[1727765570866,0.7608,2654.7,2654.4,19.43]
[1727765571674,0.7608,2654.7,2654.3,3.76746]
[1727765573866,0.7608,2654.7,2654.2,23.99949]
[1727765574077,2.3619703,2654.7,2654.2,8.33702]
[1727765574501,2.3619703,2654.7,2654.3,3.76744]
[1727765574672,2.3619703,2654.7,2654.2,4.56949]
[1727765575321,2.3619703,2654.7,2654.3,3.76746]
[1727765575718,2.3619703,2654.7,2654.2,4.56949]
[1727765575885,2.3619703,2654.7,2654.2,8.33702]
[1727765576210,2.3619703,2654.7,2654.2,4.56949]
[1727765576632,2.3619703,2654.7,2654.2,3.76749]
[1727765577686,6.1289503,2654.7,2654.2,3.76749]
[1727765577886,2.3619703,2654.7,2654.2,3.76749]
[1727765578196,6.1289203,2654.7,2654.2,3.76749]
[1727765578614,3.76705,2654.6,2654.1,3.76774]
[1727765580324,3.76705,2654.6,2654.2,0.09689341]
[1727765581479,2.3619703,2654.7,2654.2,3.86442341]
[1727765581675,0.7608,2654.7,2654.3,3.76744]
[1727765582012,0.7608,2654.7,2654.4,0.09695495]
[1727765582214,0.7608,2654.7,2654.2,3.76761]
[1727765582439,0.7608,2654.7,2654.3,0.09701815]
[1727765582745,0.7608,2654.7,2654.2,3.76761]
[1727765582961,0.7608,2654.7,2654.4,0.09695495]
[1727765583158,0.7608,2654.7,2654.3,0.09701815]
[1727765583455,4.52781,2654.7,2654.4,0.09695495]
[1727765583658,4.52781,2654.7,2654.1,7.53537]
[1727765583954,4.52781,2654.7,2654.2,0.09708135]
[1727765583955,0.798,2654.5,2654.2,0.09708135]
[1727765584603,4.56526,2654.5,2654.2,0.09708135]
[1727765584873,3.76734,2654.4,2654.0,19.43]
[1727765585056,3.76734,2654.4,2654.3,0.09388145]
[1727765585257,3.76734,2654.4,2654.0,19.43]
[1727765585565,3.76734,2654.4,2654.1,0.09400786]
[1727765586074,0.798,2654.5,2654.1,3.86174786]
[1727765588035,4.56519,2654.5,2654.1,0.09400786]
[1727765590596,0.798,2654.5,2654.1,0.09400786]
[1727765590742,3.76732,2654.4,2654.1,0.09400786]
[1727765590948,0.7692,2654.9,2654.4,3.76725]
[1727765591181,0.7692,2654.9,2654.5,0.53684203]
[1727765591393,4.53593,2654.9,2654.5,0.09379847]
[1727765595546,3.76656,2655.0,2654.6,0.7918]
[1727765595711,4.57132,2655.2,2654.6,0.7918]
[1727765596008,3.76647,2655.0,2654.7,0.09353919]
[1727765596507,4.57132,2655.2,2654.7,3.86040919]
[1727765596708,3.76641,2655.1,2654.7,0.09353919]
[1727765598919,3.76664,2654.9,2654.7,0.09353919]
[1727765599283,3.76654,2655.0,2654.7,0.09353919]
[1727765599489,3.76641,2655.1,2654.7,0.09353919]
[1727765599888,7.53286,2655.1,2654.7,0.09353919]
[1727765600239,3.76657,2655.0,2654.7,0.09353919]
[1727765600589,3.76641,2655.1,2654.7,0.09353919]
[1727765601012,3.7665,2655.0,2654.7,0.09353919]
[1727765602697,3.76651,2655.0,2654.7,0.09353919]
[1727765603109,3.76641,2655.1,2654.7,0.09353919]
[1727765603338,3.76647,2655.0,2654.7,0.09353919]
[1727765603907,3.76641,2655.1,2654.7,0.09353919]
[1727765605016,3.76641,2655.1,2654.7,0.93548311]
[1727765605633,6.1725303,2655.2,2654.7,4.70237311]
[1727765605827,3.76614,2655.3,2654.8,0.7965]
[1727765606160,3.76614,2655.3,2654.9,0.09335861]
[1727765606883,3.76622,2655.2,2654.9,0.09335861]
[1727765609749,5.3673103,2655.3,2654.9,0.09335861]
[1727765609750,3.7664,2655.1,2654.9,0.09335861]
[1727765610393,5.3672503,2655.3,2654.9,0.09335861]
[1727765610690,3.7662,2655.2,2654.9,0.09335861]
[1727765611059,3.76609,2655.3,2655.0,0.7851]
[1727765611265,3.76609,2655.3,2655.1,0.0931889]
[1727765611463,7.53223,2655.3,2655.1,0.0931889]
[1727765611687,7.53222,2655.3,2655.1,0.0931889]
[1727765611893,3.76609,2655.3,2655.1,0.0931889]
[1727765612492,3.76619,2655.2,2655.1,0.0931889]
[1727765612849,3.76619,2655.2,2654.8,0.8103]
[1727765613101,3.76619,2655.2,2654.9,0.09331523]
[1727765613390,5.3672603,2655.3,2654.9,0.09331523]
[1727765614457,3.76621,2655.2,2654.9,0.09331523]
[1727765616494,5.3673103,2655.3,2654.9,0.09331523]
[1727765616801,3.76619,2655.2,2654.9,0.09331523]
[1727765619886,1.6011703,2655.3,2654.9,0.09331523]
[1727765620186,1.6011703,2655.3,2654.9,1.60152351]
[1727765620187,5.3672403,2655.3,2654.9,1.60152351]
[1727765624263,9.1334003,2655.3,2654.9,1.60152351]
[1727765624462,5.3672403,2655.3,2654.9,1.60152351]
[1727765626096,3.76621,2655.2,2654.9,0.09331523]
[1727765626459,3.76641,2655.1,2654.9,0.09331523]
[1727765626660,7.53249,2655.2,2654.9,0.09331523]
[1727765627001,3.76633,2655.1,2654.9,0.09331523]
[1727765627390,3.76647,2655.0,2654.9,0.09331523]
[1727765627698,3.76676,2654.8,2654.7,19.43]
[1727765627871,5.3680103,2654.8,2654.7,0.0903039]
[1727765628054,1.6011703,2654.8,2654.5,0.8191]
[1727765628254,4.55142,2654.9,2654.6,0.09036708]
[1727765628255,8.31814,2654.9,2654.6,0.09036708]
[1727765628701,4.55142,2654.9,2654.6,0.09036708]
[1727765628870,3.76679,2654.8,2654.6,0.09036708]
[1727765629604,4.55142,2654.9,2654.6,0.09036708]
[1727765629770,3.7669,2654.7,2654.6,0.09036708]
[1727765630402,3.76623,2655.2,2655.0,9.36592297]
[1727765630606,4.6011703,2655.1,2655.0,9.36592297]
[1727765631296,8.3675003,2655.1,2655.0,9.36592297]
[1727765631921,9.58087333,2655.1,2655.0,9.36592297]
[1727765633279,10.23067333,2655.1,2655.0,9.36592297]
[1727765635079,3.76683,2654.8,2654.3,0.8171]
[1727765635483,3.76692,2654.7,2654.3,0.8171]
[1727765635728,3.76692,2654.7,2654.4,0.458462]
[1727765635906,1.6011703,2654.7,2654.3,0.8171]
[1727765636121,3.76726,2654.5,2654.3,0.8171]
[1727765636582,6.0179603,2654.7,2654.3,0.8171]
[1727765636583,9.7849603,2654.7,2654.3,0.8171]
[1727765636787,3.76705,2654.6,2654.3,0.8171]
[1727765638995,3.0,2655.0,2654.3,0.8171]
[1727765639202,3.76661,2655.0,2654.3,4.58444]
[1727765639400,5.3677803,2655.0,2654.4,0.458444]
[1727765639993,3.76679,2654.8,2654.4,0.458444]
[1727765640196,3.76679,2654.8,2654.5,0.08771176]
[1727765641409,3.76666,2654.9,2654.5,0.08771176]
[1727765642933,3.76681,2654.8,2654.5,0.08771176]
[1727765644239,3.76681,2654.8,2654.3,4.58454]
[1727765644512,3.76681,2654.8,2654.6,0.08764857]
[1727765644828,3.76681,2654.8,2654.3,4.58454]
[1727765645028,3.76681,2654.8,2654.4,0.08777495]
[1727765645765,3.7669,2654.7,2654.4,0.08777495]
[1727765645939,3.76681,2654.8,2654.4,0.08777495]
[1727765646326,3.6498,2655.1,2654.5,0.8235]
[1727765646621,3.0,2655.1,2654.7,0.8235]
[1727765646868,3.0,2655.1,2654.7,4.59031]
[1727765647030,3.0,2655.1,2654.8,0.55526697]
[1727765647364,3.76628,2655.2,2654.8,0.55526697]
[1727765647859,3.76636,2655.1,2654.8,0.55526697]
[1727765648209,3.76628,2655.2,2654.8,0.55526697]